Cogmind - Beta 9.6 @@@ ROGUE MODE // 2020.08.27 @ 18:54:14 Player: Bokkiewokkie Result: Destroyed by as-20531 with Assembled Heavy Rifle Performance ------------- Evolutions (0) 0 Regions Visited (2) 400 Robots Destroyed (12) 60 Value Destroyed (249) 249 Prototype IDs (2) 40 Alien Tech Used (0) 0 Bonus (0) 0 TOTAL SCORE: 749 Bonus ------- None Cogmind --------- Core Integrity 0/250 Matter 280/300 Energy 99/100 System Corruption 2% Temperature Cool (15) Movement Core (50) Location -10/Mines Parts ------- > --- POWER (1) -------- (None) > --- PROPULSION (2) --- (None) > --- UTILITY (2) ------ Seismic Analyzer Utility Shielding > --- WEAPON (2) ------- (None) > --- INVENTORY (4) ---- (None) Peak State ------------ > --- POWER ------------ Light Ion Engine > --- PROPULSION ------- Wheel Wheel > --- UTILITY ---------- Seismic Analyzer Utility Shielding > --- WEAPON ----------- EM Pulse Gun EM Pulse Gun > --- INVENTORY -------- Grenade Launcher [Rating: 7] Favorites ----------- Power Light Ion Engine Engine Light Ion Engine Propulsion Wheel Wheel Wheel Utility Utility Shielding Processor Seismic Analyzer Protection Utility Shielding Weapon EM Pulse Gun Energy Gun EM Pulse Gun Ballistic Gun Light Assault Rifle Launcher Grenade Launcher Build | -11 -10 -10 ------- Run | Scr Mat Min Slots Evolved . | . . . Power . | . . . Propulsion . | . . . Utility . | . . . Weapon . | . . . Parts Attached 12 | 4 4 4 Power 1 | 1 . . Engine 1 | 1 . . Core . | . . . Reactor . | . . . Propulsion 3 | 1 1 1 Treads . | . . . Leg . | . . . Wheel 3 | 1 1 1 Hover . | . . . Flight . | . . . Utility 2 | . 2 . Device . | . . . Storage . | . . . Processor 1 | . 1 . Hackware . | . . . Protection 1 | . 1 . Artifact . | . . . Weapon 6 | 2 1 3 Energy Gun 3 | 1 1 1 Energy Cannon . | . . . Ballistic Gun 1 | 1 . . Ballistic Cannon . | . . . Launcher 2 | . . 2 Special Weapon . | . . . Impact Weapon . | . . . Slashing Weapon . | . . . Piercing Weapon . | . . . Special Melee Weapon . | . . . Unidentified Prototypes . | . . . Parts Lost 6 | . . 6 Power 1 | . . 1 Propulsion 2 | . . 2 Utility . | . . . Weapon 3 | . . 3 Highest Loss Streak 3 | . . 3 Average Slot Usage (%) 78 | . 74 80 Engine 10 | . 14 8 Wheel 22 | . 23 21 Processor 9 | . 3 14 Protection 10 | . 4 14 Energy Gun 21 | . 23 19 Ballistic Gun 1 | . 4 . Naked Turns . | . . . Heaviest Build 9 | 6 8 9 Greatest Support 20 | 10 20 20 Greatest Overweight (x) . | . . . Average Overweight (x) . | . . . Largest Inventory Capacity 4 | 4 4 4 Average Capacity 4 | 4 4 4 Most Carried 2 | 1 1 2 Average Carried . | . . . Final Capacity 4 | 4 4 4 Final Carried 1 | . 1 . Class Distribution -------------------- 100% | Mutant Dominant Class ---------------- Mutant | -10/Materials Mutant | -10/Mines Resources | -11 -10 -10 ----------- Run | Scr Mat Min Matter Collected 327 | 192 . 135 Remotely . | . . . Salvage Created 442 | . 44 398 Parts 23 | . 1 22 Haulers Intercepted . | . . . Recyclers Shooed 1 | . . 1 Parts Field Recycled . | . . . Retrieved Matter . | . . . Parts Self-Destructed . | . . . Prevented . | . . . Kills | -11 -10 -10 ------- Run | Scr Mat Min Combat Hostiles Destroyed 5 | . 1 4 Guns 2 | . 1 1 AOE 3 | . . 3 Classes Destroyed 6 | . 1 5 Worker 3 | . . 3 Builder 1 | . . 1 Tunneler 1 | . . 1 Recycler 2 | . . 2 Grunt 4 | . 1 3 Assembled 1 | . . 1 Best Kill Streak 6 | . 1 6 Combat Bots Only 3 | . 1 3 Max Kills in Single Turn 1 | . 1 1 Gunslinging . | . . . Exploded 1 | . . 1 Melee . | . . . Uniques/NPCs Destroyed . | . . . Combat | -11 -10 -10 -------- Run | Scr Mat Min Damage Taken 576 | . 11 565 Core 262 | . . 262 Absorbed by Shields . | . . . Core Remaining (%) 100 | 100 . . Volleys Fired 42 | . 5 37 Largest 2 | . 2 2 Hottest 80 | . 80 80 Shots Fired 66 | . 10 56 Gun 61 | . 10 51 Cannon . | . . . Launcher 5 | . . 5 Special . | . . . Kinetic 2 | . 2 . Thermal . | . . . Explosive 5 | . . 5 Electromagnetic 59 | . 8 51 Robot Hit Streak 6 | . 2 6 Robot Miss Streak 3 | . 2 3 Penetration Max . | . . . Secondary Targets . | . . . Shots Hit Robots 28 | . 6 22 Core Hits 21 | . 3 18 Critical Hits . | . . . Critical Kills . | . . . Critical Parts Destroyed . | . . . Melee Attacks . | . . . Impact . | . . . Slashing . | . . . Piercing . | . . . Sneak Attacks . | . . . Combat Hostiles . | . . . Follow-up Attacks . | . . . Damage Inflicted 729 | . 64 665 Guns 350 | . 64 286 Cannons . | . . . Explosions 379 | . . 379 Melee . | . . . Ramming . | . . . Kinetic 9 | . 9 . Thermal 221 | . . 221 Explosive 158 | . . 158 Electromagnetic 341 | . 55 286 Impact . | . . . Slashing . | . . . Piercing . | . . . Highest Corruption 2 | . 2 2 Average Corruption 2 | . 2 2 Corruption Purged . | . . . Effects 3 | . . 3 Message Errors 1 | . . 1 Data Loss (minor) 1 | . . 1 Targeting Errors 1 | . . 1 Overload Shots . | . . . Overflow Damage 22 | . . 22 Projectiles . | . . . Explosions 22 | . . 22 Melee . | . . . Knockbacks . | . . . Impact . | . . . Kinetic . | . . . Secondary . | . . . Self-Inflicted Damage 89 | . . 89 Shots 3 | . . 3 Rammed . | . . . Targets Rammed . | . . . Kicked . | . . . Crushed . | . . . Highest Temperature 238 | . 60 238 Average Temperature 74 | . 29 81 Received Heat Transfer 169 | . 6 163 Effects 1 | . . 1 Interference 1 | . . 1 Siege Activations . | . . . Robots Corrupted . | . . . Combat Hostiles . | . . . Parts Fried 1 | . 1 . Impact Corruptions . | . . . Robots Melted . | . . . Combat Hostiles . | . . . Parts Melted . | . . . Heat Transferred 150 | . . 150 Parts Sabotaged . | . . . Parts Stolen . | . . . Parts Stripped . | . . . Power Chain Reactions 4 | . . 4 Missiles Intercepted . | . . . Alert | -11 -10 -10 ------- Run | Scr Mat Min Peak Influence 203 | . 35 203 Average Influence 68 | . 15 115 Maximum Alert Level 1 | . . 1 Low Security (%) 95 | 100 100 90 Level 1 4 | . . 9 Level 2 . | . . . Level 3 . | . . . Level 4 . | . . . Level 5 . | . . . High Security . | . . . Max Security . | . . . Squads Dispatched 2 | . 2 . Investigation . | . . . Extermination . | . . . Reinforcement 2 | . 2 . Assault . | . . . Garrison . | . . . Intercept . | . . . Construction Impeded . | . . . Haulers Reinforced . | . . . Stealth | -11 -10 -10 --------- Run | Scr Mat Min Distress Signals . | . . . Communications Jammed . | . . . Distress Signals . | . . . Times Spotted 28 | . 7 21 Peak Tracking Total 17 | . 4 17 Tactical Retreats 2 | . . 2 Traps | -11 -10 -10 ------- Run | Scr Mat Min Traps Triggered 1 | . 1 . Indirectly . | . . . Trap Hack Attempts . | . . . Triggered . | . . . Disarmed . | . . . Reprogrammed . | . . . Reused . | . . . Traps Extracted . | . . . Installed . | . . . Triggered . | . . . Machines | -11 -10 -10 ---------- Run | Scr Mat Min Machines Disabled 6 | . . 6 Max in Single Turn 1 | . . 1 Machines Sabotaged . | . . . Garrisons Compromised . | . . . Overloaded Fab Kills . | . . . Fab Network Shutdowns . | . . . Hacking | -11 -10 -10 --------- Run | Scr Mat Min Machines Accessed 1 | . 1 . Terminals 1 | . 1 . Fabricators . | . . . Repair Stations . | . . . Recycling Units . | . . . Scanalyzers . | . . . Garrison Access . | . . . Total Hacks 3 | . 3 . Successful 2 | . 2 . Failed 1 | . 1 . Catastrophic . | . . . Database Lockouts . | . . . Manual 1 | . 1 . Terminals 3 | . 3 . Fabricators . | . . . Repair Stations . | . . . Recycling Units . | . . . Scanalyzers . | . . . Garrison Access . | . . . Terminal Hacks 1 | . 1 . Prototype ID Bank 1 | . 1 . Fabricator Hacks . | . . . Repair Station Hacks . | . . . Recycling Unit Hacks . | . . . Scanalyzer . | . . . Garrison Access Hacks . | . . . Unauthorized Hacks 1 | . 1 . Terminals 1 | . 1 . Botnet 1 | . 1 . Fabricators . | . . . Repair Stations . | . . . Recycling Units . | . . . Scanalyzers . | . . . Garrison Access . | . . . Data Cores Recovered . | . . . Used . | . . . Hacking Detections 1 | . 1 . Full Trace Events . | . . . Feedback Events . | . . . Feedback Blocked . | . . . Robot Schematics Acquired . | . . . Robots Built . | . . . Matter . | . . . Time . | . . . Total Robot Build Rating . | . . . Part Schematics Acquired . | . . . Parts Built . | . . . Matter . | . . . Time . | . . . Total Part Build Rating . | . . . Parts Repaired . | . . . Time . | . . . Parts Recycled . | . . . Recycled Matter . | . . . Retrieved Matter . | . . . Retrieved Components . | . . . Parts Scanalyzed . | . . . Part Schematics Acquired . | . . . Parts Damaged . | . . . Bothacking | -11 -10 -10 ------------ Run | Scr Mat Min Used RIF Installer . | . . . Robots Hacked . | . . . Non-combat . | . . . Combat . | . . . Robot Hacks Applied . | . . . Relay Couplers Released . | . . . Robots Rewired . | . . . Allies Hacked . | . . . Hacks Repelled . | . . . Allies | -11 -10 -10 -------- Run | Scr Mat Min Total Allies . | . . . Largest Group . | . . . Highest-Rated Group . | . . . Highest-Rated Ally . | . . . Total Orders . | . . . Ally Attacks . | . . . Total Damage . | . . . Kills . | . . . Allies Corrupted . | . . . Allies Melted . | . . . Intel | -11 -10 -10 ------- Run | Scr Mat Min Robot Analysis Total . | . . . Derelict Logs Recovered 1 | . . 1 Drone Launches . | . . . Drone Recoveries . | . . . Exploration | -11 -10 -10 ------------- Run | Scr Mat Min Turns Passed 442 | 43 157 242 Spaces Moved 380 | 47 144 189 Core 33 | 4 . 29 Treads . | . . . Legs . | . . . Wheels 347 | 43 144 160 Hover . | . . . Flight . | . . . Fastest Speed 50 | 50 80 50 Average Speed 77 | 77 80 75 Slowest Speed 80 | 80 80 80 Overloaded Moves . | . . . Propulsion Burnouts . | . . . Robots Hopped . | . . . Cave-ins Triggered . | . . . Exploration Rate (%) 25 | 3 31 43 Regions Visited 2 Branch Regions 1 Pre-discovered Areas 1 | . . 1 Known Exits Taken . | . . . Unknown Exits Taken 2 | 1 1 . Scrap Searched . | . . . Spaces Dug . | . . . Terrain Destroyed 41 | . . 41 Melee . | . . . Projectile . | . . . AOE 41 | . . 41 Actions | -11 -10 -10 --------- Run | Scr Mat Min Total 456 | 51 174 231 Wait 20 | . 20 . Move 378 | 46 143 189 Hop . | . . . Pick Up 2 | 1 1 . Fast Attach 7 | 3 4 . Attach 2 | 1 . 1 Detach . | . . . Swap 3 | . . 3 Drop 2 | . 1 1 Fire 42 | . 5 37 Melee . | . . . Ram . | . . . Kick . | . . . Crush . | . . . Escape Stasis . | . . . Rewire . | . . . Trap . | . . . Miscellaneous . | . . . Route ------- -11/Scrapyard -10/Materials -10/Mines (discovered 1 exit: [*Mat]) History --------- Turn | Location | Event 4 | -11/Scrapyard | Discovered new exit (range 15) 44 | -11/Scrapyard | Entered Materials 167 | -10/Materials | Discovered new exit (range 9) 201 | -10/Materials | Entered Mines 244 | -10/Mines | Discovered new exit (range 14) 304 | -10/Mines | Build established: Mutant 385 | -10/Mines | Lost 3 parts (1p1n1w) 409 | -10/Mines | Assembled infested the area 428 | -10/Mines | Core integrity fell below 50% 432 | -10/Mines | Learned location of Storage (-8) 442 | -10/Mines | Core integrity fell below 20% 443 | -10/Mines | Destroyed by as-20531 with Assembled Heavy Rifle Last Messages --------------- 00378_ U-05 Engineer lays Concrete. 00385_ Core Extractor disabled. 00393_ U-05 Engineer builds a Wall. 00393_ U-05 Engineer lays Concrete. 00398_ Laser Drill disabled. 00399_ U-05 Engineer lays Concrete. 00400_ U-05 Engineer builds a Wall. 00409_ ALERT: Infestation in the mines, dispatching Demolisher response squad. 00410_ U-05 Engineer builds a Wall. 00411_ G-34 Mercenary destroyed. 00420_ EM Pulse Gun destroyed. 00425_ as-37597 destroyed. 00426_ Grenade Launcher destroyed. 00426_ Destroyed Grenade Launcher. 00426_ Wheel destroyed. 00427_ The unstable cave ceiling collapses. 00432_ Acquired derelict log, extracted data. World map updated: -8/Storage. 00437_ K-01 Serf collects debris. 00440_ K-01 Serf destroyed. Map ----- +----------------------------------------------------+ | | | | | | | | | | | | | | | | | ??????????????????????????????? | | ??????????????????????????????? | | ??????????????????????????????? | | ??????????????????????????????? | | ??????????????????????????????? | | ??????????????????????????????? | | ??????????????????????????????? | | ??????????????????????????????? | | ??????????????????????????????? | | ??????????????????????????????? | | ??????????????????????????????? | | ?????????####?????????????????? | | ??????#### ##????????????????? | | ?????## ##???????????????? | | ????## * ##??????????????? | | ????# *%=! #??????????????? | | ????# ! a #??????????????? | | ????##@a a## ##??????????????? | | ?????# aa!#####???????????????? | | ????## a #???????????? ?????? | | ????# a a#??????????? ?????? | | ????# * aa#????????? #??????? | | ????# ##???????? #???????? | | ????# a##??????? ##??????? | | ????## #?????? #??????? | | ?????## a###### #??????? | | ?????## a #?????## | | ??# #?????# | | ??# # ## ### #???## | | ??#??## ### #????? ##?### | | ??????####?# #?????????## | | ???????????# #?????????# | | ???????????# #????????## # | | ???????????# ########## #? | | ???????????# # ## | | ???????????# % # | | ???????????# """ # | | ???????????######## """ | | ??????????????????## "" | | ???????????????????### ! | | ?????????????????????# ## | | ?????????????????????# ### | +----------------------------------------------------+ Best States ------------- Heat Dissipation 25 Energy Generation 10 Energy Capacity 125 Matter Stores 300 Matter Capacity 300 Sight Range 16 Terrain Scan Density 60 Utility Shielding 33 Evasion (%) 50 Item Schematics ----------------- None Robot Schematics ------------------ None Fabricated ------------ Nothing Alien Tech Used ----------------- None Achievements -------------- None Challenges ------------ None Game ------ Seed VortexShockThrower Manual? 0 Play Time 00:08:35 Cumulative 256.0 hours Start 2020.08.27 @ 18:48:41 End 2020.08.27 @ 18:54:14 Sessions 1 Manual Loads 0 Difficulty Rogue Special Mode None Game No. 73 Rogue 54 Adventurer 19 Explorer 0 Win Type - Total 4 Types 2/0/1/1/0/0/0 Lore% 66 Gallery% 70 Achievement% 59 Wizard Run 0 Options --------- ASCII 0 Keyboard 0 Movement Mouse Keybinds 0 Fullscreen 1 Font 14/SmallcapsGlow Map View 84x54 Tactical HUD 1 Map Filters NONE Filters NONE Steam 1 RUN: 197d607b-5e02-463b-8e50-da43135e1d88